bitfinex/quotes_ETHUSD_20260213
["timestamp","ask_amount","ask_price","bid_price","bid_amount"]
[1770959390061,0.002,1943.5,1942.9,1.28668814]
[1770959390637,0.45620456,1943.5,1942.8,1.28674883]
[1770959390851,0.45620456,1943.5,1942.7,1.2878304]
[1770959392558,0.45420456,1943.4,1942.7,1.2878304]
[1770959394136,1.28839602,1943.5,1942.7,1.73816842]
[1770959394330,0.45420456,1943.4,1942.7,1.73816842]
[1770959394538,0.45420456,1943.2,1942.7,0.001]
[1770959396129,0.45420456,1943.4,1942.7,0.45133802]
[1770959396462,1.74062137,1943.4,1942.7,0.45133802]
[1770959396664,1.74062137,1943.4,1942.8,1.28680255]
[1770959396825,0.45420456,1943.3,1942.7,1.28782447]
[1770959397363,0.45420456,1943.3,1942.7,0.001]
[1770959398967,1.74260239,1943.5,1942.8,0.001]
[1770959399162,2.960244,1943.4,1942.8,0.001]
[1770959399368,0.002,1943.4,1942.8,0.001]
[1770959399961,0.002,1943.4,1942.8,0.45133802]
[1770959401259,0.002,1943.4,1942.9,1.28673632]
[1770959401535,0.002,1943.4,1942.8,1.73809552]
[1770959402464,0.002,1943.4,1942.9,0.48284936]
[1770959404639,0.002,1943.4,1942.8,1.28777846]
[1770959404843,6.55505771,1943.4,1942.9,0.48284936]
[1770959406263,6.55505771,1943.4,1942.8,1.28777846]
[1770959406562,0.002,1943.4,1942.8,1.28777846]
[1770959406867,0.002,1943.4,1942.8,1.77062782]
[1770959407364,0.002,1943.4,1942.9,0.48284936]
[1770959407556,6.53847099,1943.6,1942.9,0.48284936]
[1770959407761,7.82475397,1943.6,1942.9,0.48284936]
[1770959408452,0.47961652,1943.7,1943.0,0.48284936]
[1770959408660,1.28816447,1943.8,1943.0,0.48284936]
[1770959408876,7.83887798,1943.8,1943.0,0.48284936]
[1770959409041,8.3184945,1943.8,1943.0,0.48284936]
[1770959409862,0.48161652,1943.8,1943.1,1.28660388]
[1770959410061,0.48161652,1943.8,1943.2,0.48284936]
[1770959410264,1.28812793,1943.9,1943.2,0.48284936]
[1770959410265,0.002,1943.9,1943.3,0.48284936]
[1770959410575,0.48161652,1943.9,1943.3,0.48284936]
[1770959411181,0.47961652,1943.7,1943.1,3.64660388]
[1770959411943,0.48161652,1943.7,1943.1,3.64660388]
[1770959412252,0.002,1943.7,1943.1,4.12945324]
[1770959412446,7.03033003,1943.6,1943.1,2.36]
[1770959413861,1.28821184,1943.7,1943.1,4.12943987]
[1770959413862,0.002,1943.7,1943.1,4.12943987]
[1770959414253,0.48161652,1943.7,1943.1,3.64659051]
[1770959414980,0.47961652,1943.6,1943.1,2.36]
[1770959415146,0.47961652,1943.6,1943.1,3.6465981]
[1770959415348,0.47961652,1943.6,1943.1,2.36]
[1770959415977,0.47961652,1943.6,1943.1,3.64659996]
[1770959416275,8.31853799,1943.7,1943.1,2.36]
[1770959416868,8.31853799,1943.7,1943.1,3.6466019]
[1770959417665,6.55071351,1943.5,1943.0,1.28761766]
[1770959418473,0.47961652,1943.6,1943.0,0.48384936]
[1770959418675,6.55271351,1943.7,1943.0,0.48384936]
[1770959418978,7.03233003,1943.7,1943.0,0.48384936]
[1770959419185,0.47961652,1943.6,1943.0,0.48384936]
[1770959420459,7.03033003,1943.5,1943.0,0.001]
[1770959420660,1.76598933,1943.5,1943.0,0.001]
[1770959421179,7.03033003,1943.4,1943.0,0.001]
[1770959421379,0.47961652,1943.3,1943.0,0.001]
[1770959422949,10.20564352,1943.6,1943.0,0.001]
[1770959423155,8.31664352,1943.6,1943.0,0.001]
[1770959423464,0.47961652,1943.5,1943.0,0.001]
[1770959423663,8.31664352,1943.6,1943.0,0.001]
[1770959423860,6.55071351,1943.4,1943.0,0.001]
[1770959424075,7.03033003,1943.4,1943.0,0.001]
[1770959424860,0.47961652,1943.1,1942.8,2.358]
[1770959425066,0.47961652,1943.1,1942.8,0.001]
[1770959425256,7.03033003,1943.2,1942.8,0.001]
[1770959426687,1.896,1943.3,1942.8,1.28778817]
[1770959428289,3.18247611,1943.3,1942.8,0.001]
[1770959428671,3.66209263,1943.3,1942.8,0.001]
[1770959429787,7.03033003,1943.2,1942.8,0.001]
[1770959431789,7.03733781,1943.0,1942.5,0.001]
[1770959432878,6.55071351,1942.8,1942.5,0.001]
[1770959433280,7.03733781,1942.8,1942.5,0.001]
[1770959433692,8.32419682,1942.8,1942.5,0.001]
[1770959436491,7.83757252,1942.8,1942.3,0.929]
[1770959436692,7.83752578,1942.8,1942.3,0.929]
[1770959436900,7.83752578,1942.8,1942.6,0.001]
[1770959437063,7.83752578,1942.8,1942.3,0.929]
[1770959437269,7.83752578,1942.8,1942.5,0.001]
[1770959437496,7.8375293,1942.8,1942.5,0.001]
[1770959437804,8.29308742,1942.8,1942.5,0.001]
[1770959438289,0.45555812,1942.7,1942.3,0.929]
[1770959438592,6.55071351,1942.6,1942.3,0.929]
[1770959439071,7.00627163,1942.6,1942.3,0.929]
[1770959439467,7.00627163,1942.6,1942.3,0.001]
[1770959439988,8.29322732,1942.6,1942.3,0.001]
[1770959441295,6.55071351,1942.4,1942.1,0.001]
[1770959441603,7.00627163,1942.4,1942.1,0.001]
[1770959441983,7.00627163,1942.4,1941.8,1.28746451]
[1770959441984,8.93327163,1942.4,1941.8,0.46314894]
[1770959442169,10.2203897,1942.4,1941.7,1.75165571]
[1770959442373,10.2203897,1942.4,1941.8,0.46314894]
[1770959443803,6.55071351,1942.0,1941.7,0.001]
[1770959445309,7.83807373,1942.0,1941.7,0.001]
[1770959445518,6.55071351,1941.8,1941.6,0.928]
[1770959445683,6.55071351,1941.8,1941.2,1.75097094]
[1770959446012,9.77319879,1941.8,1941.2,1.75099918]
[1770959446308,9.77319879,1941.8,1941.2,0.46314894]
[1770959446782,9.77319879,1941.8,1941.2,1.75098739]
[1770959447712,1.935,1941.8,1941.3,0.46314894]
[1770959448077,2.39555812,1941.8,1941.2,1.28781163]
[1770959448484,3.68305497,1941.8,1941.2,1.28781163]
[1770959448787,2.39555812,1941.8,1941.2,1.28781163]
[1770959449197,6.55071351,1941.7,1941.1,1.75102451]
[1770959449584,6.55071351,1941.7,1941.3,0.001]
[1770959450900,8.49171351,1941.8,1941.3,0.46414894]
[1770959451104,8.49171351,1941.8,1941.3,0.001]
[1770959452492,6.55071351,1941.8,1941.4,0.46314894]
[1770959452709,8.49471351,1942.0,1941.4,0.46314894]
[1770959453999,6.55071351,1942.0,1941.4,0.46314894]
[1770959454525,6.55071351,1942.0,1941.5,1.28766417]
[1770959454702,6.55071351,1942.0,1941.6,0.46314894]
[1770959455333,6.55071351,1942.0,1941.5,1.28766417]
[1770959457023,6.55071351,1942.0,1941.6,0.46314894]
[1770959459023,6.55071351,1942.0,1941.6,1.75074289]
[1770959459227,1.95,1942.1,1941.6,1.75074289]
[1770959459527,6.55071351,1942.4,1941.7,0.46314894]
[1770959459703,30.0,1942.3,1941.7,0.46314894]
[1770959460624,8.95727163,1942.4,1941.7,0.46314894]
[1770959460830,1.958,1942.5,1941.7,0.46314894]
[1770959461332,1.958,1942.5,1941.9,0.45952068]
[1770959463010,0.002,1942.0,1941.9,0.45952068]
[1770959463525,0.002,1942.0,1941.7,1.74700445]
[1770959465004,0.002,1942.0,1941.8,0.45952068]
[1770959465411,0.002,1942.0,1941.9,1.28739893]
[1770959466561,0.002,1942.7,1942.0,0.45952068]
[1770959466838,0.002,1942.7,1942.2,0.45952068]
[1770959467739,0.002,1942.7,1942.3,1.28713381]
[1770959469237,0.002,1942.7,1942.4,0.45952068]
[1770959469940,0.002,1942.7,1942.2,5.60807107]
[1770959470514,0.002,1942.7,1942.3,0.45952068]
[1770959471735,0.002,1942.7,1942.4,1.74658822]
[1770959475155,0.002,1942.6,1942.4,1.74658822]
[1770959476529,0.002,1942.6,1942.4,4.09758822]
[1770959479663,0.002,1942.6,1942.4,2.351]
[1770959479857,0.002,1942.6,1942.4,3.63805998]
[1770959482858,0.002,1942.6,1942.4,4.09758066]
[1770959483662,0.002,1942.6,1942.5,0.45952068]
[1770959484276,0.002,1942.6,1942.5,1.74652196]
[1770959484465,0.002,1942.6,1942.5,1.28700128]
[1770959484669,0.002,1942.6,1942.4,7.49926589]
[1770959484874,0.002,1942.6,1942.3,1.28708811]
[1770959485195,0.4810376,1942.5,1942.1,2.357]
[1770959485400,6.55611371,1942.4,1942.1,2.357]
[1770959485680,0.4810376,1942.3,1942.0,0.929]
[1770959485844,6.55611371,1942.4,1942.0,0.929]
[1770959486047,7.03715131,1942.4,1942.0,0.929]
[1770959486580,7.03715131,1942.4,1942.0,2.21632722]
[1770959487283,7.03715131,1942.4,1942.0,0.929]
[1770959487789,7.03715131,1942.4,1942.1,0.001]
[1770959488890,0.4810376,1942.3,1942.1,0.001]
[1770959489589,7.03715131,1942.4,1942.1,0.001]
[1770959494000,6.55611371,1942.4,1942.1,0.001]
[1770959494624,0.002,1942.5,1942.1,0.49372669]
[1770959494978,0.002,1942.5,1942.2,1.77992677]
[1770959495376,0.002,1942.5,1942.3,0.49272669]
[1770959495908,0.002,1942.7,1942.3,0.49272669]
[1770959497121,0.002,1942.7,1942.4,1.28706754]
[1770959500420,0.002,1942.7,1942.4,1.77979423]
[1770959500619,0.002,1942.6,1942.4,1.77979423]
[1770959500919,0.002,1942.8,1942.5,0.49272669]
[1770959501228,0.002,1942.8,1942.3,1.8313111]
[1770959501524,0.002,1942.8,1942.3,1.28710172]
[1770959502195,0.45769293,1942.8,1942.3,1.28710172]
[1770959502927,7.01180664,1942.7,1942.3,2.368]
[1770959503236,0.002,1942.8,1942.3,2.86072669]
[1770959504420,0.002,1942.8,1942.4,1.28706754]
[1770959504613,0.002,1942.8,1942.4,1.77979423]
[1770959506231,0.002,1942.8,1942.5,0.49272669]
[1770959506418,0.002,1942.8,1942.6,1.77966172]
[1770959507109,0.002,1942.8,1942.7,0.49272669]
[1770959507909,0.002,1942.8,1942.6,1.28693503]
[1770959508421,0.002,1942.8,1942.6,3.66693503]
[1770959509429,0.002,1942.8,1942.7,0.49272669]
[1770959510519,0.002,1942.8,1942.7,1.28686879]
[1770959511104,0.002,1942.8,1942.7,1.77959548]
[1770959511308,0.45569293,1943.4,1942.8,0.49272669]
[1770959512408,0.002,1943.5,1942.9,2.88172669]
[1770959512715,0.45769293,1943.5,1943.0,1.28667009]
[1770959513116,0.002,1943.5,1943.1,0.49272669]
[1770959513743,0.45769293,1943.5,1943.0,1.28667009]
[1770959513941,0.45769293,1943.5,1942.9,3.67568748]
[1770959514339,0.45769293,1943.5,1942.9,4.16841417]
[1770959515537,1.74403347,1943.5,1942.9,4.16841417]
[1770959515742,0.45569293,1943.4,1942.9,3.67573461]
[1770959517742,0.45569293,1943.4,1942.9,3.67573537]
[1770959518245,1.74210486,1943.4,1942.9,2.389]
[1770959518848,0.45569293,1943.4,1942.9,3.67573447]
[1770959519442,1.74210753,1943.4,1942.9,2.389]
[1770959519858,1.74210753,1943.4,1942.9,3.67573423]
[1770959520147,0.45569293,1943.4,1942.9,3.67573423]
[1770959520722,0.47599279,1943.5,1942.9,4.14994259]
[1770959525169,0.47599279,1943.5,1943.0,0.47420836]
[1770959525170,0.002,1943.5,1943.0,0.47420836]
[1770959525653,0.002,1943.5,1943.1,0.47420836]
[1770959525843,0.002,1943.4,1943.1,0.47420836]
[1770959526752,0.002,1943.4,1943.0,0.04387128]
[1770959527126,0.002,1943.4,1943.1,1.28660388]
[1770959527322,0.47599279,1943.4,1942.9,3.6757286]
[1770959529153,0.47399279,1943.1,1942.8,2.392]
[1770959530026,1.76240642,1943.4,1942.8,2.86620836]
[1770959530231,0.47399279,1943.2,1942.8,2.392]
[1770959530826,6.55611371,1943.3,1942.8,2.392]
[1770959530827,7.0301065,1943.3,1942.8,2.392]
[1770959531030,0.47399279,1943.3,1942.9,1.28673632]
[1770959531249,7.02927019,1943.4,1942.9,1.28673632]
[1770959533443,0.47399279,1943.3,1942.8,2.392]
[1770959533765,0.47399279,1943.3,1942.8,3.67879117]
[1770959536960,1.76046837,1943.3,1942.8,3.67879117]
[1770959537465,7.02727019,1943.2,1942.8,2.392]
[1770959537763,0.47399279,1943.1,1942.8,2.392]
[1770959537964,0.47399279,1943.1,1942.8,0.001]
[1770959538679,1.28647558,1943.3,1942.9,0.001]
[1770959538835,0.002,1943.3,1942.9,0.001]
[1770959540272,0.47599279,1943.3,1942.9,0.001]
[1770959545076,0.002,1943.3,1942.9,0.001]
[1770959545572,0.002,1943.3,1942.9,0.47520836]
[1770959546142,0.002,1943.3,1942.9,0.001]
[1770959547245,0.002,1943.3,1942.9,1.28773632]
[1770959547576,0.002,1943.3,1943.0,0.47420836]
[1770959547750,0.002,1943.3,1942.9,1.28773632]
[1770959548150,0.002,1943.3,1942.9,3.67573632]
[1770959548776,0.002,1943.3,1942.9,4.14994468]
[1770959549054,0.002,1943.3,1943.0,0.47420836]
[1770959549450,0.002,1943.3,1943.1,1.28660388]
[1770959551788,0.002,1943.2,1943.1,1.28660388]
[1770959552168,0.002,1943.2,1942.9,2.389]
[1770959552393,0.002,1943.2,1942.9,3.67573224]
[1770959552885,0.002,1943.2,1942.9,4.12853177]
[1770959554675,0.002,1943.2,1942.9,2.389]
[1770959554874,0.46805444,1943.2,1942.9,2.389]
[1770959556389,0.46805444,1943.2,1942.9,0.001]
[1770959561178,0.46805444,1943.2,1942.8,0.001]
[1770959561179,7.01933184,1943.0,1942.8,0.001]
[1770959561379,7.01933184,1943.0,1942.6,2.398]
[1770959561997,7.01933184,1942.8,1942.4,0.929]
[1770959563175,7.01933184,1943.0,1942.4,2.21606193]
[1770959563480,7.01933184,1943.0,1942.4,2.71400211]
[1770959564193,7.01933184,1943.0,1942.9,0.001]
[1770959564372,7.01933184,1943.0,1942.4,2.71400211]
[1770959564773,8.30600349,1943.0,1942.8,0.001]
[1770959565301,7.01933184,1943.0,1942.8,0.001]
[1770959565599,7.01933184,1943.0,1942.4,2.71400211]
[1770959566304,7.01933184,1942.8,1942.4,0.929]
[1770959567693,6.5532774,1942.8,1942.4,2.21606346]
[1770959567887,7.01933184,1943.0,1942.4,2.71400364]
[1770959568905,8.30600359,1943.0,1942.4,2.71400364]
[1770959569276,7.01933184,1942.8,1942.4,0.929]
[1770959570112,0.46605444,1942.7,1942.4,0.929]
[1770959572400,5.14696652,1942.9,1942.4,0.929]
[1770959572401,0.46605444,1942.9,1942.4,2.21606376]
[1770959572605,8.30603236,1943.0,1942.4,1.28806376]
[1770959572777,8.30603236,1943.0,1942.4,0.001]
[1770959572981,0.46605444,1942.9,1942.4,0.001]
[1770959573210,6.5532774,1942.8,1942.4,0.001]
[1770959575710,6.5532774,1942.8,1942.4,1.2880638]
[1770959577112,6.5532774,1942.8,1942.5,0.001]
[1770959577413,0.002,1942.7,1942.5,0.001]
[1770959579215,0.002,1942.7,1942.5,0.49894018]
[1770959580211,0.002,1942.7,1942.6,1.28693503]
[1770959580523,0.002,1942.7,1942.6,1.78487521]
[1770959580721,0.002,1942.7,1942.5,1.2879478]
[1770959580927,0.002,1942.7,1942.5,1.75973574]
[1770959581322,0.002,1942.7,1942.5,0.001]
[1770959591609,0.002,1943.1,1942.6,0.47178794]
[1770959591819,0.002,1943.1,1942.7,2.87878794]
[1770959592198,0.002,1943.1,1942.7,4.16559528]
[1770959592619,7.00957423,1943.0,1942.5,1.28795418]
[1770959593340,6.55645534,1942.8,1942.5,0.001]
[1770959593502,6.55645534,1942.6,1942.4,2.408]
[1770959593906,7.00957423,1942.8,1942.4,2.408]
[1770959594116,7.00957423,1942.8,1942.4,3.69506619]
[1770959594330,7.00957423,1942.8,1942.4,2.408]
[1770959594638,7.00957423,1942.8,1942.4,3.69506526]
[1770959595333,7.00957423,1942.8,1942.4,2.408]
[1770959595734,7.00957423,1942.8,1942.4,3.69505794]
[1770959596537,7.00957423,1942.8,1942.4,2.408]
[1770959596707,7.00957423,1942.8,1942.4,3.69506306]
[1770959599536,6.55645534,1942.5,1942.3,0.001]
[1770959599743,7.00957423,1942.5,1942.1,1.28823117]
[1770959599906,7.00957423,1942.5,1942.0,8.95699387]
[1770959599907,7.00957423,1942.3,1942.0,3.336]
[1770959600111,6.55645534,1942.1,1941.7,3.39226698]
[1770959600310,0.45311889,1942.3,1941.7,3.39226698]
[1770959600511,7.00957423,1942.4,1941.8,0.47178794]
[1770959602238,7.00957423,1942.4,1941.9,1.28739893]
[1770959602736,0.45311889,1942.3,1941.7,5.15000772]
[1770959603057,7.00957423,1942.0,1941.6,0.001]
[1770959603211,7.00957423,1941.8,1941.2,2.68760878]
[1770959603837,7.00957423,1941.8,1941.2,2.21582084]
[1770959603838,6.55645534,1941.6,1941.2,2.21582084]
[1770959604044,6.55645534,1941.4,1941.2,0.928]
[1770959604537,7.00957423,1941.6,1941.2,1.28785094]
[1770959604957,0.45311889,1941.6,1941.1,1.28788453]
[1770959605513,2.43911889,1941.8,1941.1,1.28788453]
[1770959606236,2.43911889,1941.8,1941.1,1.75967247]
[1770959607338,0.45311889,1941.8,1941.1,1.75967247]
[1770959607551,1.985,1941.9,1941.2,0.47178794]
[1770959608114,0.45311889,1942.0,1941.2,0.47178794]
[1770959608424,0.45311889,1942.0,1941.4,0.47178794]
[1770959608835,0.45311889,1942.0,1941.3,1.28779683]
[1770959609148,0.45311889,1941.9,1941.3,1.28779683]
[1770959609645,0.45311889,1941.9,1941.1,5.62336279]
[1770959610852,0.46502754,1941.8,1941.1,5.62336279]
[1770959611427,0.46502754,1941.8,1941.1,1.28792952]
[1770959613851,0.45086072,1941.6,1941.1,1.28792952]
[1770959614627,0.45086072,1941.6,1941.2,0.001]
[1770959620333,1.981,1941.7,1941.2,0.001]
[1770959620535,0.45086072,1941.8,1941.2,0.001]
[1770959620738,0.45086072,1941.8,1941.2,0.48747767]
[1770959622372,0.45086072,1941.8,1941.3,1.28779683]
[1770959623367,11.39087564,1942.0,1941.4,0.48647767]
[1770959623567,1.73809705,1942.2,1941.4,0.48647767]
[1770959623872,0.45086072,1942.1,1941.4,0.48647767]
[1770959624250,0.45086072,1942.1,1941.5,1.28766417]
[1770959624446,0.45086072,1942.1,1941.5,1.77414184]
[1770959624782,0.45086072,1942.0,1941.5,1.28766417]
[1770959624946,6.56459357,1941.7,1941.4,1.28767951]
[1770959625978,6.56459357,1941.7,1941.3,1.28775639]
[1770959626990,6.56459357,1941.7,1941.2,1.77530239]
[1770959627507,6.56459357,1941.7,1941.3,0.001]
[1770959628163,6.56459357,1941.5,1941.3,0.001]
[1770959637524,6.56459357,1941.5,1941.1,5.6381142]
[1770959637525,0.45086072,1941.4,1941.1,5.15163653]
[1770959637691,0.45086072,1941.1,1940.5,0.48647767]
[1770959637890,0.45086072,1941.1,1940.4,0.24988219]
[1770959637891,6.56459357,1940.6,1940.4,0.24988219]
[1770959638191,6.56459357,1940.8,1940.4,0.24988219]
[1770959638387,6.56459357,1940.6,1940.4,0.24988219]
[1770959638693,6.56459357,1940.5,1940.0,1.77510417]
[1770959638891,6.56459357,1940.5,1940.1,0.48647767]
[1770959639819,6.56459357,1940.5,1940.1,1.77501422]
[1770959639966,6.56459357,1940.8,1940.2,0.48647767]
[1770959640171,6.56459357,1940.6,1940.2,0.48647767]
[1770959640715,6.56459357,1940.6,1940.1,1.28953655]
[1770959641003,9.00045429,1940.8,1940.1,1.28953655]
[1770959641004,2.43586072,1940.8,1940.1,1.28953655]
[1770959641179,2.43586072,1940.8,1940.1,1.7538405]
[1770959641376,2.43586072,1940.8,1940.2,0.46430395]
[1770959641582,2.43586072,1940.8,1940.3,1.28846054]
[1770959642107,0.48063617,1941.2,1940.4,0.46430395]
[1770959643407,2.46563617,1941.3,1940.4,0.46430395]
[1770959643605,2.46563617,1941.3,1940.6,0.46430395]
[1770959643802,0.48063617,1941.3,1940.6,0.46430395]
[1770959643968,1.985,1941.4,1940.6,0.46430395]
[1770959644298,0.002,1941.5,1940.7,0.46430395]
[1770959644895,0.48263617,1941.5,1940.7,0.46430395]
[1770959645505,0.002,1941.6,1940.6,2.394]
[1770959645798,0.002,1941.6,1940.9,0.46430395]
[1770959647700,0.002,1941.6,1941.0,1.28799587]
[1770959647901,0.002,1941.6,1941.0,1.75229982]
[1770959650904,0.002,1941.6,1941.1,0.46430395]
[1770959652005,0.002,1941.6,1941.2,1.28786317]
[1770959653696,0.002,1941.6,1941.2,1.75216712]
[1770959653898,0.002,1941.5,1941.2,1.75216712]
[1770959655103,0.002,1941.5,1941.2,1.28786317]
[1770959660534,0.002,1941.5,1941.1,3.67788259]
[1770959664692,0.002,1941.5,1941.1,4.14218654]
[1770959666329,0.002,1941.5,1941.2,0.001]
[1770959666533,0.002,1941.4,1941.2,0.001]
[1770959668934,0.48263617,1941.4,1941.2,0.001]
[1770959671939,0.002,1941.4,1941.2,0.001]
[1770959680545,0.46286503,1941.4,1941.2,0.001]
[1770959680916,0.46286503,1941.4,1941.0,0.001]
[1770959681137,1.75059885,1941.4,1941.0,0.001]
[1770959681308,0.46086503,1941.3,1941.0,0.001]
[1770959682520,0.46086503,1941.3,1940.9,0.001]
[1770959683639,0.46086503,1941.2,1940.9,0.001]
[1770959684421,0.46086503,1941.2,1940.5,1.2883011]
[1770959684726,0.46086503,1941.1,1940.5,1.2883011]
[1770959684922,6.57001561,1940.9,1940.5,1.2883011]
[1770959685343,7.03088064,1940.9,1940.4,1.28833941]
[1770959686646,7.03088064,1940.9,1940.3,7.54270359]
[1770959686647,6.57001561,1940.7,1940.3,3.67742633]
[1770959686939,6.57001561,1940.7,1940.3,2.389]
[1770959687123,6.57001561,1940.6,1940.3,2.389]
[1770959687319,7.03088064,1940.8,1940.3,2.389]
[1770959687524,7.03088064,1940.8,1940.3,1.2894492]
[1770959687933,8.31902386,1940.8,1940.3,0.001]
[1770959688137,7.03088064,1940.8,1940.3,0.001]
[1770959688720,0.46086503,1940.7,1940.3,0.001]
[1770959688915,6.57001561,1940.8,1940.3,0.001]
[1770959689120,7.03088064,1940.8,1940.3,0.001]
[1770959690036,7.03088064,1940.8,1940.3,0.49748357]
[1770959690237,7.03088064,1940.8,1940.4,0.001]
[1770959691219,1.28779683,1941.3,1940.5,0.49648357]
[1770959691423,6.57001561,1941.1,1940.5,0.49648357]
[1770959691654,7.03088064,1941.1,1940.5,0.49648357]
[1770959692652,7.03088064,1941.1,1940.6,1.28826136]
[1770959692838,0.46086503,1941.1,1940.6,1.28826136]
[1770959693241,7.03088064,1941.0,1940.6,1.28826136]
[1770959693653,7.03088064,1941.0,1940.5,1.28828316]
[1770959694353,8.54801561,1941.2,1940.6,0.49648357]
[1770959694554,10.29674414,1941.2,1940.6,1.78469591]
[1770959694751,0.46086503,1941.1,1940.6,1.78469591]
[1770959694935,0.46086503,1941.1,1940.6,1.28821234]
[1770959695756,6.57001561,1941.2,1940.6,1.78469591]
[1770959697260,6.57001561,1940.8,1940.4,0.001]
[1770959697439,6.57001561,1940.8,1939.9,0.49648357]
[1770959697440,7.03088064,1940.5,1939.9,0.49648357]
[1770959697629,6.57001561,1940.3,1939.9,1.78520837]
[1770959697828,6.57001561,1940.3,1939.9,0.49648357]
[1770959698061,6.57001561,1940.3,1939.7,1.78829675]
[1770959698265,7.03088064,1940.4,1939.7,1.78829675]
[1770959698648,6.57001561,1940.2,1939.7,0.49948357]
[1770959698957,8.55201561,1940.4,1939.8,0.49648357]
[1770959699160,9.01288064,1940.4,1939.8,0.49648357]
[1770959699358,9.01288064,1940.4,1939.9,1.28872622]
[1770959699731,7.03088064,1940.4,1939.9,1.28872622]
[1770959699936,6.57001561,1940.4,1939.9,1.28872622]
[1770959700263,1.983,1940.5,1940.0,0.49648357]
[1770959700431,7.03088064,1940.8,1940.0,0.49648357]
[1770959700634,6.57001561,1940.8,1940.0,0.49648357]
[1770959700862,0.49378234,1940.7,1940.0,0.49648357]
[1770959701658,0.49378234,1940.7,1940.1,1.75273361]
[1770959701845,2.47678234,1940.9,1940.2,0.46414024]
[1770959702046,2.47578234,1941.1,1940.2,0.46414024]
[1770959702363,0.002,1941.0,1940.2,0.46414024]
[1770959703264,0.49378234,1940.9,1940.2,0.46414024]
[1770959703555,0.49378234,1940.9,1940.3,1.28846054]
[1770959703743,0.49378234,1940.9,1940.3,1.75260078]
[1770959704352,0.002,1941.0,1940.4,0.46414024]
[1770959705864,0.002,1941.0,1940.6,0.46414024]
[1770959706038,0.002,1941.0,1940.7,0.46414024]
[1770959707970,0.002,1941.0,1940.8,1.2881286]
[1770959708152,0.002,1941.0,1940.8,1.75226884]
[1770959709268,0.002,1941.0,1940.9,0.46414024]
[1770959709469,0.002,1941.4,1940.8,1.2881286]
[1770959709470,0.002,1941.4,1941.0,0.46414024]
[1770959710049,0.002,1941.4,1941.2,0.46414024]
[1770959712554,0.002,1941.4,1941.3,1.28779683]
[1770959712753,0.002,1941.4,1941.3,1.75193707]
[1770959712950,0.002,1941.6,1941.3,1.75193707]
[1770959713155,0.002,1942.0,1941.4,0.46414024]
[1770959713358,0.49578234,1942.0,1941.4,0.46414024]
[1770959713974,1.78311577,1942.0,1941.4,0.46414024]
[1770959714174,0.49578234,1942.0,1941.4,0.46414024]
[1770959714549,0.49578234,1942.0,1941.5,1.28766417]
[1770959715751,0.002,1941.9,1941.5,1.75180441]
[1770959716665,0.002,1941.9,1941.6,0.46414024]
[1770959718670,0.002,1941.9,1941.7,1.28753154]
[1770959719460,0.002,1941.9,1941.6,1.75170463]
[1770959720175,0.002,1941.9,1941.5,2.382]
[1770959720474,0.49578234,1941.9,1941.5,3.66966269]
[1770959720652,0.49378234,1941.8,1941.1,5.15147179]
[1770959720847,0.49378234,1941.8,1941.0,4.13610965]
[1770959722054,1.28942715,1941.9,1941.0,2.384]
[1770959722055,0.49378234,1941.6,1941.0,2.384]
[1770959722592,0.49378234,1941.2,1940.7,0.929]
[1770959723074,1.28779683,1941.3,1940.5,2.383]
[1770959723075,0.49378234,1941.0,1940.5,2.383]
[1770959723860,0.49378234,1941.0,1940.4,0.001]
[1770959724576,0.49378234,1940.8,1940.4,0.001]
[1770959724957,0.49378234,1941.0,1940.4,0.001]
[1770959725471,0.49378234,1941.2,1940.4,0.46514024]
[1770959726666,1.7816996,1941.2,1940.5,1.28832775]
[1770959727484,1.7816996,1941.2,1940.3,0.001]
[1770959727485,0.49378234,1940.7,1940.3,0.001]
[1770959727684,0.49378234,1940.4,1939.8,0.001]
[1770959727979,0.49378234,1940.4,1939.7,0.003]
[1770959728552,1.28846054,1940.3,1939.7,0.003]
[1770959728784,0.49378234,1940.2,1939.7,0.003]
[1770959729481,0.49378234,1940.2,1939.6,0.00198413]
[1770959729668,1.28846054,1940.3,1939.4,0.003]
[1770959729669,0.49378234,1939.8,1939.4,0.003]
[1770959730279,0.49378234,1940.1,1939.4,0.003]
[1770959730457,1.963,1940.2,1939.4,0.003]
[1770959730657,1.77753866,1940.1,1939.4,0.003]
[1770959732180,0.48894529,1940.1,1939.4,0.003]
[1770959732784,0.48894529,1939.9,1939.4,0.003]
[1770959733788,0.48894529,1939.9,1939.0,2.39652]
[1770959733789,0.48894529,1939.8,1939.0,2.39652]
[1770959734083,0.45275097,1939.6,1939.0,0.01652]
[1770959734683,0.45275097,1939.5,1939.0,0.01652]
[1770959735459,1.74163714,1939.7,1939.0,0.01652]
[1770959735788,3.70463714,1939.7,1939.0,1.30583568]
[1770959735989,0.45275097,1939.6,1939.0,0.01652]
[1770959736792,0.45275097,1939.4,1939.0,0.01652]
[1770959737100,0.45275097,1939.3,1938.2,0.45521763]
[1770959737304,8.95723701,1939.4,1938.3,1.28979002]
[1770959737305,2.41675097,1939.2,1938.3,1.28979002]
[1770959737472,0.45275097,1938.7,1937.8,1.29012281]
[1770959737798,0.45275097,1938.6,1937.8,1.29012281]
[1770959737971,9.40998798,1939.1,1937.7,0.45521763]
[1770959738373,1.968,1939.0,1937.7,0.45521763]
[1770959738569,1.38175097,1939.3,1937.7,0.45521763]
[1770959738768,2.56920842,1939.2,1937.9,0.45521763]
[1770959739190,1.28,1939.2,1937.9,0.45521763]
[1770959739403,2.5691916,1939.2,1937.9,0.45521763]
[1770959739598,0.45275097,1939.3,1938.0,0.45521763]
[1770959739902,3.579335,1939.2,1938.0,0.45521763]
[1770959740194,3.579335,1939.2,1937.8,1.29012281]
[1770959740195,3.60150497,1939.2,1938.1,0.45521763]
[1770959740384,0.45275097,1939.2,1938.1,0.45521763]
[1770959740880,0.45275097,1939.2,1939.0,0.001]
[1770959741078,0.45275097,1939.2,1938.2,1.29085656]
[1770959741281,5.15572634,1939.6,1938.2,1.29085656]
[1770959741282,10.80127789,1939.7,1938.3,0.45521763]
[1770959741583,10.80127789,1939.7,1938.2,1.29085656]